[Event "FIDE Grand Swiss 2023"]
[Site "Villa Marina, Douglas, Isle of Man"]
[Date "2023.11.03"]
[Round "9.6"]
[White "Kuzubov, Yuriy"]
[Black "Sevian, Samuel"]
[Result "1/2-1/2"]
[WhiteElo "2625"]
[BlackElo "2698"]
[EventDate "2023.10.25"]
[ECO "D38"]
[PlyCount "121"]
[BlackFideId "2040506"]
[TimeControl "40/100 + 20/50 + 15 + 30s/move"]
[WhiteFideId "14112906"]

1.d4 {[%clk 01:40:55][%emt 00:00:04]} 1...Nf6 {[%clk 01:40:36][%emt 00:00:25]} 
2.c4 {[%clk 01:41:18][%emt 00:00:06]} 2...e6 {[%clk 01:38:55][%emt 00:02:13]} 
3.Nf3 {[%clk 01:41:40][%emt 00:00:06]} 3...d5 {[%clk 01:39:22][%emt 00:00:04]} 
4.Nc3 {[%clk 01:42:00][%emt 00:00:09]} 4...Bb4 {[%clk 01:39:48][%emt 00:00:05]} 
5.Bg5 {[%clk 01:42:18][%emt 00:00:11]} 5...h6 {[%clk 01:40:14][%emt 00:00:05]} 
6.Bxf6 {[%clk 01:42:36][%emt 00:00:12]} 6...Qxf6 {[%clk 01:40:41][%emt
00:00:03]} 7.e3 {[%clk 01:42:29][%emt 00:00:36]} 7...O-O {[%clk 01:40:58][%emt
00:00:14]} 8.Rc1 {[%clk 01:42:31][%emt 00:00:27]} 8...dxc4 {[%clk 01:41:24][%emt
00:00:05]} 9.Bxc4 {[%clk 01:42:50][%emt 00:00:10]} 9...c5 {[%clk 01:41:50][%emt
00:00:04]} 10.dxc5 {[%clk 01:43:12][%emt 00:00:08]} 10...Nd7 {[%clk
01:42:18][%emt 00:00:03]} 11.c6 {[%clk 01:40:11][%emt 00:03:30]} 11...bxc6 
{[%clk 01:42:44][%emt 00:00:06]} 12.O-O {[%clk 01:40:16][%emt 00:00:23]} 
12...Ne5 {[%clk 01:43:11][%emt 00:00:04]} 13.Nxe5 {[%clk 01:39:33][%emt
00:01:12]} 13...Qxe5 {[%clk 01:43:39][%emt 00:00:03]} 14.Qc2 {[%clk
01:39:48][%emt 00:00:14]} 14...Rb8 {[%clk 01:26:09][%emt 00:18:00]} 15.Rfd1 
{[%clk 01:33:17][%emt 00:07:00]} 15...Be7 {[%clk 01:18:38][%emt 00:08:02]} 
16.b3 {[%clk 01:23:19][%emt 00:10:29]} 16...Bb7 {[%clk 01:07:14][%emt 00:11:54]} 
17.Bf1 {[%clk 01:12:40][%emt 00:11:08]} 17...Rfd8 {[%clk 01:00:12][%emt
00:07:33]} 18.g3 {[%clk 01:03:12][%emt 00:09:57]} 18...c5 {[%clk 00:58:15][%emt
00:02:29]} 19.Bg2 {[%clk 00:53:06][%emt 00:10:34]} 19...Ba6 {[%clk
00:58:25][%emt 00:00:21]} 20.h4 {[%clk 00:43:34][%emt 00:10:00]} 20...Rxd1+ 
{[%clk 00:41:21][%emt 00:17:36]} 21.Rxd1 {[%clk 00:39:05][%emt 00:04:58]} 
21...Rd8 {[%clk 00:33:41][%emt 00:08:11]} 22.Rxd8+ {[%clk 00:37:37][%emt
00:01:58]} 22...Bxd8 {[%clk 00:34:09][%emt 00:00:02]} 23.Bf1 {[%clk
00:36:35][%emt 00:01:31]} 23...Bf6 {[%clk 00:18:45][%emt 00:15:55]} 24.Bxa6 
{[%clk 00:32:51][%emt 00:04:14]} 24...Qxc3 {[%clk 00:17:59][%emt 00:01:16]} 
25.Qe4 {[%clk 00:33:01][%emt 00:00:19]} 25...g6 {[%clk 00:18:23][%emt 00:00:08]} 
26.Qa8+ {[%clk 00:28:12][%emt 00:05:17]} 26...Kg7 {[%clk 00:18:42][%emt
00:00:12]} 27.Qxa7 {[%clk 00:27:23][%emt 00:01:19]} 27...Qa5 {[%clk
00:17:20][%emt 00:01:51]} 28.a4 {[%clk 00:24:53][%emt 00:03:00]} 28...c4 {[%clk
00:17:48][%emt 00:00:03]} 29.bxc4 {[%clk 00:24:56][%emt 00:00:27]} 29...Qxa4 
{[%clk 00:18:13][%emt 00:00:04]} 30.Qb7 {[%clk 00:13:57][%emt 00:11:29]} 
30...Qa3 {[%clk 00:18:00][%emt 00:00:43]} 31.Bb5 {[%clk 00:13:07][%emt
00:01:21]} 31...h5 {[%clk 00:16:26][%emt 00:02:04]} 32.Kg2 {[%clk 00:13:23][%emt
00:00:13]} 32...Qc5 {[%clk 00:16:31][%emt 00:00:26]} 33.Be8 {[%clk
00:11:11][%emt 00:02:41]} 33...Be7 {[%clk 00:16:39][%emt 00:00:22]} 34.Qf3 
{[%clk 00:11:05][%emt 00:00:35]} 34...Bf6 {[%clk 00:15:39][%emt 00:01:32]} 
35.Bb5 {[%clk 00:09:13][%emt 00:02:21]} 35...Be7 {[%clk 00:15:42][%emt
00:00:27]} 36.Qe4 {[%clk 00:08:22][%emt 00:01:21]} 36...Bf6 {[%clk
00:15:50][%emt 00:00:22]} 37.Ba4 {[%clk 00:07:12][%emt 00:01:40]} 37...Be7 
{[%clk 00:14:26][%emt 00:01:55]} 38.Bc2 {[%clk 00:06:55][%emt 00:00:47]} 
38...Bf6 {[%clk 00:14:36][%emt 00:00:20]} 39.Kf3 {[%clk 00:06:44][%emt
00:00:40]} 39...Qc7 {[%clk 00:14:01][%emt 00:01:06]} 40.Ke2 {[%clk
00:06:17][%emt 00:00:57]} 40...Qc5 {[%clk 00:14:09][%emt 00:00:21]} 41.Qd3 
{[%clk 00:06:05][%emt 00:00:42]} 41...Qb4 {[%clk 00:13:55][%emt 00:00:45]} 
42.Bb3 {[%clk 00:04:22][%emt 00:02:12]} 42...Be7 {[%clk 00:12:29][%emt
00:01:58]} 43.Qc2 {[%clk 00:03:11][%emt 00:01:40]} 43...Qa3 {[%clk
00:11:55][%emt 00:01:04]} 44.Ba4 {[%clk 00:03:14][%emt 00:00:27]} 44...Qb4 
{[%clk 00:11:56][%emt 00:00:29]} 45.Bc6 {[%clk 00:03:19][%emt 00:00:25]} 
45...Bf6 {[%clk 00:10:37][%emt 00:01:50]} 46.Be4 {[%clk 00:03:19][%emt
00:00:28]} 46...Be7 {[%clk 00:10:35][%emt 00:00:33]} 47.Bd3 {[%clk
00:03:40][%emt 00:00:09]} 47...Bd6 {[%clk 00:10:03][%emt 00:01:02]} 48.Qa2 
{[%clk 00:03:55][%emt 00:00:14]} 48...Be7 {[%clk 00:09:45][%emt 00:00:48]} 
49.Qa7 {[%clk 00:02:35][%emt 00:01:50]} 49...Qc5 {[%clk 00:06:37][%emt
00:03:38]} 50.Qb7 {[%clk 00:01:54][%emt 00:01:10]} 50...Qb4 {[%clk
00:06:51][%emt 00:00:18]} 51.Qb5 {[%clk 00:01:37][%emt 00:00:47]} 51...Qa3 
{[%clk 00:06:01][%emt 00:01:20]} 52.Be4 {[%clk 00:00:46][%emt 00:01:21]} 
52...Qc3 {[%clk 00:05:56][%emt 00:00:34]} 53.Kf3 {[%clk 00:00:34][%emt
00:00:42]} 53...Qf6+ {[%clk 00:04:59][%emt 00:01:28]} 54.Kg2 {[%clk
00:00:57][%emt 00:00:06]} 54...Qc3 {[%clk 00:05:25][%emt 00:00:05]} 55.Qe8 
{[%clk 00:00:34][%emt 00:00:53]} 55...Qxc4 {[%clk 00:34:15][%emt 00:21:41]} 
56.Bxg6 {[%clk 00:50:51][%emt 00:00:12]} 56...Kxg6 {[%clk 00:34:42][%emt
00:00:03]} 57.Qxe7 {[%clk 00:51:00][%emt 00:00:21]} 57...Qe4+ {[%clk 00:35:08]
[%emt 00:00:04]} 58.Kf1 {[%clk 00:46:47][%emt 00:04:42]} 58...Qb1+ {[%clk
00:35:35][%emt 00:00:04]} 59.Kg2 {[%clk 00:47:11][%emt 00:00:06]} 59...Qe4+ 
{[%clk 00:35:08][%emt 00:00:04]} 60.Kh2 {[%clk 00:47:33][%emt 00:00:07]} 
60...Qf5 {[%clk 00:36:28][%emt 00:00:03]} 61.Kg2 {[%clk 00:41:49][%emt
00:06:12]} 1/2-1/2

[Event "FIDE Grand Swiss 2023"]
[Site "Villa Marina, Douglas, Isle of Man"]
[Date "2023.11.03"]
[Round "9.7"]
[White "Bacrot, Etienne"]
[Black "Predke, Alexandr"]
[Result "1/2-1/2"]
[WhiteElo "2669"]
[BlackElo "2656"]
[EventDate "2023.10.25"]
[ECO "B33"]
[PlyCount "50"]
[BlackFideId "24107581"]
[TimeControl "40/100 + 20/50 + 15 + 30s/move"]
[WhiteFideId "605506"]

1.e4 {[%clk 01:40:54][%emt 00:00:06]} 1...c5 {[%clk 01:39:04][%emt 00:01:56]} 
2.Nf3 {[%clk 01:41:18][%emt 00:00:05]} 2...e6 {[%clk 01:39:28][%emt 00:00:06]} 
3.d4 {[%clk 01:41:44][%emt 00:00:04]} 3...cxd4 {[%clk 01:39:51][%emt 00:00:07]} 
4.Nxd4 {[%clk 01:42:11][%emt 00:00:03]} 4...Nf6 {[%clk 01:40:15][%emt 00:00:06]} 
5.Nc3 {[%clk 01:42:36][%emt 00:00:05]} 5...Nc6 {[%clk 01:40:40][%emt 00:00:05]} 
6.Ndb5 {[%clk 01:41:56][%emt 00:01:10]} 6...d6 {[%clk 01:40:57][%emt 00:00:13]} 
7.Bf4 {[%clk 01:42:20][%emt 00:00:06]} 7...e5 {[%clk 01:41:22][%emt 00:00:05]} 
8.Bg5 {[%clk 01:42:46][%emt 00:00:03]} 8...a6 {[%clk 01:41:45][%emt 00:00:08]} 
9.Na3 {[%clk 01:43:11][%emt 00:00:04]} 9...b5 {[%clk 01:42:10][%emt 00:00:06]} 
10.Nd5 {[%clk 01:43:37][%emt 00:00:03]} 10...Be7 {[%clk 01:42:33][%emt
00:00:07]} 11.Bxf6 {[%clk 01:43:58][%emt 00:00:09]} 11...Bxf6 {[%clk
01:42:57][%emt 00:00:06]} 12.c3 {[%clk 01:44:17][%emt 00:00:11]} 12...O-O 
{[%clk 01:43:01][%emt 00:00:27]} 13.Nc2 {[%clk 01:44:20][%emt 00:00:26]} 
13...Bg5 {[%clk 01:43:02][%emt 00:00:30]} 14.a4 {[%clk 01:40:00][%emt 00:04:50]} 
14...bxa4 {[%clk 01:43:22][%emt 00:00:10]} 15.Rxa4 {[%clk 01:40:18][%emt
00:00:12]} 15...Kh8 {[%clk 01:43:46][%emt 00:00:05]} 16.Bc4 {[%clk
01:36:47][%emt 00:04:02]} 16...f5 {[%clk 01:43:50][%emt 00:00:26]} 17.exf5 
{[%clk 01:36:19][%emt 00:00:58]} 17...Bxf5 {[%clk 01:43:54][%emt 00:00:26]} 
18.O-O {[%clk 01:34:33][%emt 00:02:16]} 18...a5 {[%clk 01:42:23][%emt 00:02:02]} 
19.b3 {[%clk 01:14:11][%emt 00:20:51]} 19...Rb8 {[%clk 01:32:29][%emt 00:10:25]} 
20.Ra2 {[%clk 01:07:32][%emt 00:07:09]} 20...Qd7 {[%clk 01:16:52][%emt
00:16:07]} 21.Qe2 {[%clk 01:04:41] [%emt 00:03:20]} 21...Bg4 {[%clk 01:01:18]
[%emt 00:16:05]} 22.Qe4 {[%clk 01:01:50] [%emt 00:03:21]} 22...Bf5 {[%clk
00:55:30] [%emt 00:06:19]} 23.Qe2 {[%clk 01:02:05] [%emt 00:00:14]} 23...Bg4 
{[%clk 00:54:54] [%emt 00:01:07]} 24.Qe4 {[%clk 01:01:50][%emt 00:03:21]} 
24...Bf5 {[%clk 00:55:30][%emt 00:06:19]} 25.Qe2 {[%clk 01:04:41][%emt
00:03:20]} 25...Bg4 {[%clk 01:01:18][%emt 00:16:05]} 1/2-1/2

[Event "FIDE Grand Swiss 2023"]
[Site "Villa Marina, Douglas, Isle of Man"]
[Date "2023.11.03"]
[Round "9.8"]
[White "Wojtaszek, Radoslaw"]
[Black "Aronian, Levon"]
[Result "1/2-1/2"]
[WhiteElo "2668"]
[BlackElo "2742"]
[EventDate "2023.10.25"]
[ECO "E10"]
[PlyCount "131"]
[BlackFideId "13300474"]
[TimeControl "40/100 + 20/50 + 15 + 30s/move"]
[WhiteFideId "1118358"]

1.d4 {[%clk 01:40:57][%emt 00:00:02]} 1...Nf6 {[%clk 01:40:54][%emt 00:00:06]} 
2.c4 {[%clk 01:41:21][%emt 00:00:06]} 2...e6 {[%clk 01:41:20][%emt 00:00:04]} 
3.Nf3 {[%clk 01:41:45][%emt 00:00:06]} 3...d5 {[%clk 01:41:46][%emt 00:00:04]} 
4.g3 {[%clk 01:42:11][%emt 00:00:05]} 4...Be7 {[%clk 01:42:11][%emt 00:00:05]} 
5.Bg2 {[%clk 01:42:36][%emt 00:00:04]} 5...O-O {[%clk 01:42:36][%emt 00:00:05]} 
6.Nc3 {[%clk 01:43:02][%emt 00:00:04]} 6...Nc6 {[%clk 01:43:00][%emt 00:00:06]} 
7.Ne5 {[%clk 01:39:10][%emt 00:04:22]} 7...Nxe5 {[%clk 01:42:16][%emt 00:01:14]} 
8.dxe5 {[%clk 01:38:19][%emt 00:01:22]} 8...Nd7 {[%clk 01:42:44][%emt 00:00:01]} 
9.cxd5 {[%clk 01:36:26][%emt 00:02:24]} 9...Nxe5 {[%clk 01:43:05][%emt
00:00:08]} 10.O-O {[%clk 01:31:53][%emt 00:05:02]} 10...exd5 {[%clk
01:43:05][%emt 00:00:31]} 11.Nxd5 {[%clk 01:32:17][%emt 00:00:06]} 11...Bd6 
{[%clk 01:43:25][%emt 00:00:10]} 12.b3 {[%clk 01:30:36][%emt 00:02:11]} 12...c6 
{[%clk 01:39:58][%emt 00:03:57]} 13.Ne3 {[%clk 01:30:39][%emt 00:00:27]} 
13...Bc5 {[%clk 01:33:44][%emt 00:06:44]} 14.Qc2 {[%clk 01:29:11][%emt
00:01:59]} 14...Bd4 {[%clk 01:32:27][%emt 00:01:48]} 15.Bb2 {[%clk
01:17:43][%emt 00:11:57]} 15...Bxb2 {[%clk 01:27:50][%emt 00:05:07]} 16.Qxb2 
{[%clk 01:18:01][%emt 00:00:12]} 16...Qf6 {[%clk 01:28:05][%emt 00:00:15]} 
17.Qc2 {[%clk 01:17:56][%emt 00:00:35]} 17...Ng4 {[%clk 01:15:37][%emt
00:12:58]} 18.Nc4 {[%clk 01:13:36][%emt 00:04:50]} 18...Rd8 {[%clk
01:15:01][%emt 00:01:06]} 19.h3 {[%clk 01:08:11][%emt 00:05:55]} 19...Ne5 
{[%clk 01:14:49][%emt 00:00:42]} 20.Ne3 {[%clk 01:08:34][%emt 00:00:06]} 
20...Be6 {[%clk 01:10:29][%emt 00:04:51]} 21.f4 {[%clk 00:56:58][%emt 00:12:06]} 
21...Nd7 {[%clk 01:09:51][%emt 00:01:07]} 22.Rad1 {[%clk 00:49:28][%emt
00:08:00]} 22...Nb6 {[%clk 01:07:13][%emt 00:03:08]} 23.Qc5 {[%clk
00:48:10][%emt 00:01:48]} 23...Re8 {[%clk 01:03:54][%emt 00:03:48]} 24.Rd2 
{[%clk 00:41:24][%emt 00:07:17]} 24...Qe7 {[%clk 00:55:28][%emt 00:08:57]} 
25.Qxe7 {[%clk 00:41:32][%emt 00:00:22]} 25...Rxe7 {[%clk 00:55:53][%emt
00:00:04]} 26.Rfd1 {[%clk 00:41:56][%emt 00:00:05]} 26...Rae8 {[%clk
00:52:20][%emt 00:04:04]} 27.Rd8 {[%clk 00:42:05][%emt 00:00:22]} 27...Kf8 
{[%clk 00:52:45][%emt 00:00:05]} 28.Kf2 {[%clk 00:42:07][%emt 00:00:28]} 
28...a5 {[%clk 00:52:53][%emt 00:00:23]} 29.R1d4 {[%clk 00:38:54][%emt
00:03:42]} 29...Rxd8 {[%clk 00:47:32][%emt 00:05:51]} 30.Rxd8+ {[%clk
00:39:13][%emt 00:00:12]} 30...Re8 {[%clk 00:48:01][%emt 00:00:02]} 31.Rd4 
{[%clk 00:39:33][%emt 00:00:09]} 31...g6 {[%clk 00:42:09][%emt 00:06:23]} 
32.Nd1 {[%clk 00:38:47][%emt 00:01:15]} 32...Nd5 {[%clk 00:35:59][%emt
00:06:39]} 33.e4 {[%clk 00:37:12][%emt 00:02:05]} 33...Nb4 {[%clk 00:35:58][%emt
00:00:32]} 34.Nc3 {[%clk 00:37:33][%emt 00:00:08]} 34...f6 {[%clk 00:35:37][%emt
00:00:52]} 35.h4 {[%clk 00:35:37][%emt 00:02:26]} 35...Ke7 {[%clk 00:33:23][%emt
00:02:43]} 36.Bf1 {[%clk 00:34:06][%emt 00:02:02]} 36...b5 {[%clk 00:30:45][%emt
00:03:08]} 37.Rd2 {[%clk 00:29:34][%emt 00:05:02]} 37...Na6 {[%clk
00:29:02][%emt 00:02:14]} 38.Ke3 {[%clk 00:29:34][%emt 00:00:29]} 38...Nc5 
{[%clk 00:24:05][%emt 00:05:27]} 39.Rc2 {[%clk 00:29:30][%emt 00:00:34]} 
39...b4 {[%clk 00:23:37][%emt 00:00:58]} 40.Nb5 {[%clk 00:14:36][%emt 00:15:24]} 
40...Nxe4 {[%clk 00:23:35][%emt 00:00:32]} 41.Nc7 {[%clk 00:15:01][%emt
00:00:05]} 41...Nxg3 {[%clk 00:23:59][%emt 00:00:06]} 42.Nxe8 {[%clk
00:15:27][%emt 00:00:04]} 42...Nxf1+ {[%clk 00:24:24][%emt 00:00:05]} 43.Kf2 
{[%clk 00:15:47][%emt 00:00:09]} 43...Kxe8 {[%clk 00:23:57][%emt 00:00:58]} 
44.Kxf1 {[%clk 00:14:25][%emt 00:01:52]} 44...Kd7 {[%clk 00:24:24][%emt
00:00:03]} 45.Ke2 {[%clk 00:11:13][%emt 00:03:41]} 45...Kd6 {[%clk
00:24:18][%emt 00:00:35]} 46.Ke3 {[%clk 00:08:21][%emt 00:03:23]} 46...c5 
{[%clk 00:22:09][%emt 00:02:39]} 47.Rd2+ {[%clk 00:07:48][%emt 00:01:02]} 
47...Kc6 {[%clk 00:20:30][%emt 00:02:10]} 48.Kd3 {[%clk 00:44:54][%emt
00:13:24]} 48...h6 {[%clk 01:05:20][%emt 00:05:41]} 49.Kc2 {[%clk 00:28:55][%emt
00:16:29]} 49...g5 {[%clk 00:55:06][%emt 00:10:44]} 50.fxg5 {[%clk
00:28:14][%emt 00:01:11]} 50...fxg5 {[%clk 00:55:04][%emt 00:00:31]} 51.hxg5 
{[%clk 00:28:42][%emt 00:00:02]} 51...hxg5 {[%clk 00:55:21][%emt 00:00:14]} 
52.Rh2 {[%clk 00:29:04][%emt 00:00:07]} 52...g4 {[%clk 00:53:47][%emt 00:02:05]} 
53.Rh5 {[%clk 00:27:40][%emt 00:01:54]} 53...a4 {[%clk 00:53:34][%emt 00:00:43]} 
54.Rg5 {[%clk 00:21:22][%emt 00:06:48]} 54...axb3+ {[%clk 00:48:57][%emt
00:05:07]} 55.axb3 {[%clk 00:21:01][%emt 00:00:51]} 55...Kd6 {[%clk
00:49:25][%emt 00:00:01]} 56.Kb2 {[%clk 00:16:00][%emt 00:05:31]} 56...Ke7 
{[%clk 00:48:55][%emt 00:01:00]} 57.Rxc5 {[%clk 00:16:01][%emt 00:00:29]} 
57...Kf6 {[%clk 00:49:22][%emt 00:00:03]} 58.Kc2 {[%clk 00:15:34][%emt
00:00:57]} 58...g3 {[%clk 00:49:42][%emt 00:00:11]} 59.Kd2 {[%clk 00:15:57][%emt
00:00:06]} 59...g2 {[%clk 00:50:01][%emt 00:00:11]} 60.Rc1 {[%clk 00:16:22][%emt
00:00:04]} 60...Bxb3 {[%clk 00:50:26][%emt 00:00:06]} 61.Ke3 {[%clk
00:15:03][%emt 00:01:49]} 61...Bc2 {[%clk 00:50:45][%emt 00:00:12]} 62.Rg1 
{[%clk 00:15:05][%emt 00:00:27]} 62...b3 {[%clk 00:51:07][%emt 00:00:07]} 
63.Kd2 {[%clk 00:15:05][%emt 00:00:31]} 63...Be4 {[%clk 00:51:29][%emt
00:00:08]} 64.Kc3 {[%clk 00:15:32][%emt 00:00:03]} 64...Bd5 {[%clk
00:51:54][%emt 00:00:05]} 65.Rxg2 {[%clk 00:15:56][%emt 00:00:07]} 65...Bxg2 
{[%clk 00:52:18][%emt 00:00:06]} 66.Kxb3 {[%clk 00:16:23][%emt 00:00:02]} ( 
66.Kxb3 {[%clk 00:16:23][%emt 00:00:02]} 66...Ke5 {[%emt 00:00:13]} ) 1/2-1/2

[Event "FIDE Grand Swiss 2023"]
[Site "Villa Marina, Douglas, Isle of Man"]
[Date "2023.11.03"]
[Round "9.9"]
[White "Sindarov, Javokhir"]
[Black "Vachier-Lagrave, Maxime"]
[Result "1/2-1/2"]
[WhiteElo "2658"]
[BlackElo "2727"]
[EventDate "2023.10.25"]
[ECO "B50"]
[PlyCount "65"]
[BlackClock "00:12:55"]
[BlackFideId "623539"]
[TimeControl "40/100 + 20/50 + 15 + 30s/move"]
[WhiteClock "00:11:15"]
[WhiteFideId "14205483"]

1.e4 {[%clk 01:40:33][%emt 00:00:25]} 1...c5 {[%clk 01:40:56][%emt 00:00:05]} 
2.Nf3 {[%clk 01:40:59][%emt 00:00:04]} 2...d6 {[%clk 01:41:23][%emt 00:00:03]} 
3.Nc3 {[%clk 01:41:04][%emt 00:00:24]} 3...Nf6 {[%clk 01:41:47][%emt 00:00:06]} 
4.Bb5+ {[%clk 01:41:30][%emt 00:00:05]} 4...Bd7 {[%clk 01:38:01][%emt 00:04:16]} 
5.Qe2 {[%clk 01:41:38][%emt 00:00:21]} 5...g6 {[%clk 01:20:19][%emt 00:18:12]} 
6.e5 {[%clk 01:39:47][%emt 00:02:22]} 6...dxe5 {[%clk 01:20:37][%emt 00:00:12]} 
7.Qxe5 {[%clk 01:40:09][%emt 00:00:07]} 7...Nc6 {[%clk 01:00:54][%emt 00:20:14]} 
8.Qxc5 {[%clk 01:39:35][%emt 00:01:04]} 8...e6 {[%clk 01:01:19][%emt 00:00:05]} 
9.Qc4 {[%clk 01:32:59][%emt 00:07:05]} 9...a6 {[%clk 01:01:07][%emt 00:00:43]} 
10.Bxc6 {[%clk 01:33:16][%emt 00:00:14]} 10...Bxc6 {[%clk 01:01:32][%emt
00:00:04]} 11.Qe2 {[%clk 01:32:29][%emt 00:01:16]} 11...Nd5 {[%clk
00:53:27][%emt 00:08:35]} 12.Ne5 {[%clk 00:44:57][%emt 00:48:03]} 12...Nxc3 
{[%clk 00:53:32][%emt 00:00:25]} 13.bxc3 {[%clk 00:37:22][%emt 00:08:05]} 
13...Bxg2 {[%clk 00:52:56][%emt 00:01:06]} 14.Rg1 {[%clk 00:37:20][%emt
00:00:33]} 14...Bc6 {[%clk 00:46:49][%emt 00:06:37]} 15.Nxc6 {[%clk
00:37:11][%emt 00:00:40]} 15...bxc6 {[%clk 00:47:07][%emt 00:00:11]} 16.Qe5 
{[%clk 00:37:33][%emt 00:00:08]} 16...Rg8 {[%clk 00:45:59][%emt 00:01:37]} 
17.Rb1 {[%clk 00:37:59][%emt 00:00:06]} 17...Bg7 {[%clk 00:31:00][%emt
00:15:29]} 18.Qe4 {[%clk 00:38:03][%emt 00:00:25]} 18...Qd5 {[%clk
00:29:54][%emt 00:01:36]} 19.Rg4 {[%clk 00:37:27][%emt 00:01:04]} 19...Be5 
{[%clk 00:23:58][%emt 00:06:27]} 20.Rb7 {[%clk 00:24:51][%emt 00:13:06]} 
20...f5 {[%clk 00:21:55][%emt 00:02:34]} 21.Qxd5 {[%clk 00:24:21][%emt
00:01:00]} 21...cxd5 {[%clk 00:22:21][%emt 00:00:04]} 22.Ra4 {[%clk
00:17:38][%emt 00:07:13]} 22...Rg7 {[%clk 00:22:29][%emt 00:00:21]} 23.Rb6 
{[%clk 00:18:06][%emt 00:00:03]} 23...Kd7 {[%clk 00:20:05][%emt 00:02:54]} 
24.d4 {[%clk 00:16:56][%emt 00:01:40]} 24...Bc7 {[%clk 00:17:08][%emt 00:03:27]} 
25.Rbxa6 {[%clk 00:17:09][%emt 00:00:17]} 25...Rxa6 {[%clk 00:17:34][%emt
00:00:03]} 26.Rxa6 {[%clk 00:17:34][%emt 00:00:05]} 26...g5 {[%clk
00:17:56][%emt 00:00:07]} 27.Kf1 {[%clk 00:15:19][%emt 00:02:46]} 27...h5 
{[%clk 00:15:01][%emt 00:03:24]} 28.Kg2 {[%clk 00:15:25][%emt 00:00:25]} 
28...Rg8 {[%clk 00:12:31][%emt 00:03:00]} 29.Ra7 {[%clk 00:12:28][%emt
00:03:27]} 29...h4 {[%clk 00:11:58][%emt 00:01:03]} 30.h3 {[%clk 00:10:31] [%emt
00:02:27]} 30...Kc6 {[%clk 00:12:25] [%emt 00:00:03]} 31.Ra6+ {[%clk 00:10:57]
[%emt 00:00:04]} 31...Kd7 {[%clk 00:12:51][%emt 00:00:04]} 32.Ra7 {[%clk
00:10:31][%emt 00:02:27]} 32...Kc6 {[%clk 00:12:25][%emt 00:00:03]} 33.Ra6+ 
{[%clk 00:11:15][%emt 00:00:40]} 1/2-1/2

[Event "FIDE Grand Swiss 2023"]
[Site "Villa Marina, Douglas, Isle of Man"]
[Date "2023.11.03"]
[Round "9.10"]
[White "Keymer, Vincent"]
[Black "Nihal, Sarin"]
[Result "1-0"]
[WhiteElo "2717"]
[BlackElo "2694"]
[EventDate "2023.10.25"]
[ECO "D27"]
[PlyCount "59"]
[BlackFideId "25092340"]
[TimeControl "40/100 + 20/50 + 15 + 30s/move"]
[WhiteFideId "12940690"]

1.d4 {[%clk 01:40:52][%emt 00:00:07]} 1...d5 {[%clk 01:39:59][%emt 00:01:00]} 
2.Nf3 {[%clk 01:39:57][%emt 00:01:26]} 2...Nf6 {[%clk 01:40:16][%emt 00:00:13]} 
3.c4 {[%clk 01:40:17][%emt 00:00:10]} 3...dxc4 {[%clk 01:39:49][%emt 00:00:56]} 
4.e3 {[%clk 01:40:00][%emt 00:00:49]} 4...e6 {[%clk 01:40:12][%emt 00:00:07]} 
5.Bxc4 {[%clk 01:40:27][%emt 00:00:04]} 5...c5 {[%clk 01:40:27][%emt 00:00:14]} 
6.O-O {[%clk 01:40:51][%emt 00:00:05]} 6...a6 {[%clk 01:40:54][%emt 00:00:03]} 
7.Re1 {[%clk 01:39:19][%emt 00:02:04]} 7...Nc6 {[%clk 01:38:58][%emt 00:02:24]} 
8.Nc3 {[%clk 01:37:14][%emt 00:02:37]} 8...b5 {[%clk 01:37:54][%emt 00:01:33]} 
9.Bd3 {[%clk 01:37:37][%emt 00:00:08]} 9...Bb7 {[%clk 01:38:18][%emt 00:00:06]} 
10.a4 {[%clk 01:37:59][%emt 00:00:08]} 10...b4 {[%clk 01:38:42][%emt 00:00:05]} 
11.Ne4 {[%clk 01:38:24][%emt 00:00:06]} 11...Na5 {[%clk 01:39:05][%emt
00:00:07]} 12.Nxf6+ {[%clk 01:38:40][%emt 00:00:14]} 12...Qxf6 {[%clk
01:39:28][%emt 00:00:07]} 13.e4 {[%clk 01:39:04][%emt 00:00:06]} 13...h6 {[%clk
01:39:53][%emt 00:00:04]} 14.Bd2 {[%clk 01:33:18][%emt 00:06:17]} 14...cxd4 
{[%clk 01:37:33][%emt 00:02:49]} 15.e5 {[%clk 01:32:56][%emt 00:00:53]} 
15...Qd8 {[%clk 01:36:43][%emt 00:01:20]} 16.Rc1 {[%clk 01:32:19][%emt
00:01:08]} 16...Be7 {[%clk 01:34:29][%emt 00:02:43]} 17.h4 {[%clk 01:32:44][%emt
00:00:05]} 17...Qb6 {[%clk 01:16:56][%emt 00:18:03]} 18.Bf4 {[%clk
01:21:38][%emt 00:11:36]} 18...Bd5 {[%clk 01:04:33][%emt 00:12:53]} 19.Nxd4 
{[%clk 01:11:16][%emt 00:10:52]} 19...Qxd4 {[%clk 00:47:43][%emt 00:17:19]} 
20.Bb5+ {[%clk 01:11:31][%emt 00:00:15]} 20...axb5 {[%clk 00:48:09][%emt
00:00:05]} 21.Qxd4 {[%clk 01:11:57][%emt 00:00:04]} 21...bxa4 {[%clk
00:48:33][%emt 00:00:05]} 22.Rc7 {[%clk 01:00:11][%emt 00:12:16]} 22...Bd8 
{[%clk 00:32:31][%emt 00:16:31]} 23.Ra7 {[%clk 00:57:25][%emt 00:03:17]} 
23...Rxa7 {[%clk 00:27:56][%emt 00:05:05]} 24.Qxa7 {[%clk 00:55:06][%emt
00:02:49]} 24...O-O {[%clk 00:28:20][%emt 00:00:04]} 25.Bd2 {[%clk
00:53:50][%emt 00:01:47]} 25...Nc6 {[%clk 00:27:43][%emt 00:01:07]} 26.Qxa4 
{[%clk 00:53:36][%emt 00:00:45]} 26...Be7 {[%clk 00:28:08][%emt 00:00:05]} 
27.h5 {[%clk 00:50:07][%emt 00:03:59]} 27...Rd8 {[%clk 00:23:17][%emt 00:05:20]} 
28.Rc1 {[%clk 00:43:50][%emt 00:06:47]} 28...Bf8 {[%clk 00:23:26][%emt
00:00:21]} 29.Qa6 {[%clk 00:37:05][%emt 00:07:15]} 29...b3 {[%clk 00:20:55][%emt
00:03:00]} 30.Qb6 {[%clk 00:34:37][%emt 00:02:59]} 1-0